bitfinex/quotes_SOLUSD_20240926
["timestamp","ask_amount","ask_price","bid_price","bid_amount"]
[1727309991641,6.84469,148.83,148.77,20.0]
[1727309994646,0.12549,148.84,148.79,12.15402321]
[1727309995731,23.6334065,148.86,148.79,12.15402321]
[1727309997045,0.12549,148.85,148.79,12.15402321]
[1727309998028,0.12549,148.85,148.8,12.15402321]
[1727309999854,0.12549,148.85,148.79,12.15402321]
[1727310000230,0.12549,148.85,148.8,12.15402321]
[1727310000447,16.9154065,148.86,148.81,13.49786498]
[1727310000638,23.6331065,148.86,148.81,12.15402321]
[1727310000840,23.6331065,148.86,148.8,12.15402321]
[1727310001436,16.9154065,148.86,148.8,12.15402321]
[1727310003258,23.6332065,148.86,148.8,12.15402321]
[1727310004056,23.6332065,148.86,148.79,12.15402321]
[1727310004252,23.6332065,148.86,148.8,20.0]
[1727310005560,23.6332065,148.86,148.78,32.15402321]
[1727310005561,6.84369,148.85,148.78,32.15402321]
[1727310008463,0.12549,148.85,148.76,20.0]
[1727310008652,0.12549,148.85,148.78,20.0]
[1727310008868,0.12549,148.82,148.78,20.0]
[1727310009163,6.84499,148.82,148.78,20.0]
[1727310009557,6.84499,148.82,148.77,20.0]
[1727310010850,22.90169,148.82,148.77,20.0]
[1727310011248,6.72,148.81,148.76,20.0]
[1727310012243,22.90169,148.82,148.76,20.0]
[1727310012446,16.18219,148.82,148.77,13.49824482]
[1727310012744,16.18219,148.82,148.78,20.0]
[1727310014470,16.18219,148.82,148.78,21.34411378]
[1727310016872,16.4779065,148.86,148.78,33.49813699]
[1727310017056,6.84369,148.85,148.8,12.15402321]
[1727310018251,23.1956065,148.86,148.81,1.34392519]
[1727310018457,16.4779065,148.86,148.81,13.4979484]
[1727310018979,23.1957065,148.86,148.8,12.15402321]
[1727310019547,16.4779065,148.86,148.78,12.15402321]
[1727310019747,23.1957065,148.86,148.8,12.15402321]
[1727310020058,0.12549,148.85,148.81,13.49784643]
[1727310020858,0.12549,148.85,148.81,12.15402321]
[1727310022066,0.12549,148.85,148.8,13.49784654]
[1727310022458,0.12549,148.85,148.81,1.34382381]
[1727310023160,23.1957065,148.86,148.81,1.34382381]
[1727310023359,0.4212065,148.86,148.84,20.0]
[1727310023547,0.4212065,148.86,148.85,1.34347277]
[1727310026066,0.4212065,148.86,148.85,33.49749598]
[1727310026455,0.4212065,148.86,148.85,32.15402321]
[1727310029556,0.4212065,148.86,148.85,32.27951321]
[1727310029965,0.4212065,148.86,148.85,33.62262761]
[1727310030278,0.4212065,148.86,148.85,56.05639721]
[1727310030683,0.4212065,148.86,148.85,57.52484024]
[1727310031256,0.251075,148.9,148.85,57.52484024]
[1727310031257,0.251075,148.9,148.86,43.902374]
[1727310031479,0.251075,148.9,148.89,32.15402321]
[1727310035663,0.251075,148.9,148.89,20.0]
[1727310036403,0.251075,148.9,148.89,32.15402321]
[1727310040598,0.251075,148.9,148.89,20.0]
[1727310044992,0.251075,148.9,148.89,12.15402321]
[1727310045200,0.251075,148.9,148.89,32.15402321]
[1727310051407,0.251075,148.9,148.88,12.15402321]
[1727310051595,0.251075,148.9,148.89,20.0]
[1727310051902,0.251075,148.9,148.87,12.15402321]
[1727310053092,0.251075,148.9,148.88,20.0]
[1727310055891,0.251075,148.9,148.84,20.0]
[1727310056087,0.251075,148.9,148.86,20.0]
[1727310057104,0.251075,148.9,148.84,12.15402321]
[1727310057276,0.251075,148.9,148.85,20.0]
[1727310057795,6.7164,148.89,148.85,20.0]
[1727310057994,6.7164,148.89,148.81,20.0]
[1727310058294,6.7164,148.89,148.79,13.24791995]
[1727310058295,16.4325,148.88,148.82,12.15402321]
[1727310058899,23.1493,148.88,148.82,12.15402321]
[1727310059399,16.4325,148.88,148.83,20.0]
[1727310062719,16.4325,148.88,148.83,12.15402321]
[1727310063007,16.4325,148.88,148.84,21.34360289]
[1727310063213,16.4325,148.88,148.84,33.4976261]
[1727310063387,16.4325,148.88,148.85,13.49743881]
[1727310063702,16.4325,148.88,148.85,12.15402321]
[1727310064714,16.4325,148.88,148.84,20.0]
[1727310065211,16.4325,148.88,148.83,20.0]
[1727310065409,16.4325,148.88,148.83,32.15402321]
[1727310065714,16.4325,148.88,148.85,20.0]
[1727310065884,16.4325,148.88,148.85,32.15402321]
[1727310066085,0.251075,148.9,148.86,13.49751508]
[1727310066393,0.251075,148.9,148.85,12.15402321]
[1727310066596,0.251075,148.9,148.86,20.0]
[1727310067314,6.5967,148.88,148.78,7.01303682]
[1727310067814,0.12549,148.85,148.76,13.32340731]
[1727310067985,0.12549,148.82,148.76,12.15402321]
[1727310069013,0.12549,148.82,148.75,0.251075]
[1727310069014,15.5587,148.81,148.75,0.251075]
[1727310069187,22.2787,148.81,148.75,0.251075]
[1727310069386,15.5587,148.81,148.75,12.40509821]
[1727310069582,15.5587,148.81,148.77,32.15402321]
[1727310072305,15.5587,148.81,148.77,20.0]
[1727310073224,15.5587,148.81,148.8,1.0]
[1727310074494,29.5547,148.85,148.8,1.0]
[1727310074700,0.12549,148.84,148.8,1.0]
[1727310075693,22.8366,148.85,148.8,1.0]
[1727310075894,16.3023,148.85,148.8,22.34381316]
[1727310076326,16.3023,148.85,148.8,21.0]
[1727310076691,23.0205,148.85,148.8,1.0]
[1727310077296,0.12549,148.84,148.8,1.0]
[1727310079005,0.12549,148.84,148.8,21.0]
[1727310080617,16.3023,148.85,148.81,20.0]
[1727310083030,16.3023,148.85,148.8,1.0]
[1727310087712,16.3023,148.85,148.8,22.34383975]
[1727310089327,16.3023,148.85,148.8,21.0]
[1727310092425,16.3023,148.85,148.8,1.0]
[1727310092929,0.12549,148.84,148.8,1.0]
[1727310093131,23.902374,148.84,148.8,1.0]
[1727310093332,6.7194,148.83,148.8,1.0]
[1727310093534,0.12549,148.82,148.8,1.0]
[1727310093830,6.84519,148.82,148.8,1.0]
[1727310095421,30.622274,148.81,148.8,1.0]
[1727310097523,30.747764,148.81,148.8,1.0]
[1727310099019,46.672364,148.81,148.8,1.0]
[1727310099713,86.882364,148.81,148.8,1.0]
[1727310100113,66.672364,148.81,148.8,1.0]
[1727310100414,6.7217,148.78,148.75,0.251075]
[1727310100620,0.12549,148.77,148.75,0.251075]
[1727310100821,23.902374,148.77,148.75,0.251075]
[1727310101039,6.84739,148.77,148.75,0.251075]
[1727310101822,30.624574,148.76,148.75,0.251075]
[1727310103138,46.176064,148.76,148.75,0.251075]
[1727310103349,66.176064,148.76,148.75,0.251075]
[1727310104716,66.176064,148.76,148.7,0.251075]
[1727310104717,20.25098,148.73,148.7,0.251075]
[1727310104915,50.752264,148.71,148.7,0.251075]
[1727310107634,85.985064,148.71,148.7,0.251075]
[1727310108541,65.775064,148.71,148.7,0.251075]
[1727310117853,23.902374,148.71,148.7,0.251075]
[1727310118244,0.12549,148.71,148.7,0.251075]
[1727310120264,30.752264,148.71,148.7,0.251075]
[1727310121264,50.752264,148.71,148.7,0.251075]
[1727310122041,0.12549,148.67,148.66,0.251075]
[1727310122242,30.628674,148.67,148.66,0.251075]
[1727310123369,30.754164,148.67,148.66,0.251075]
[1727310123863,50.754164,148.67,148.66,0.251075]
[1727310125167,6.7272,148.65,148.64,0.1701315]
[1727310125351,30.755064,148.65,148.64,0.1701315]
[1727310125552,70.965064,148.65,148.64,0.1701315]
[1727310128564,50.755064,148.65,148.64,0.1701315]
[1727310128988,50.629574,148.65,148.64,0.1701315]
[1727310129153,22.3215,148.7,148.64,0.1701315]
[1727310129655,6.7263,148.67,148.64,0.1701315]
[1727310129857,42.5315,148.7,148.64,0.1701315]
[1727310129858,6.7259,148.68,148.64,0.1701315]
[1727310131768,0.12549,148.66,148.64,0.1701315]
[1727310132875,0.12549,148.67,148.64,0.1701315]
[1727310133357,23.902374,148.68,148.64,0.1701315]
[1727310133969,35.9941,148.74,148.64,0.1701315]
[1727310134151,6.7241,148.72,148.64,0.1701315]
[1727310134355,6.7246,148.71,148.64,0.1701315]
[1727310135159,6.725,148.7,148.64,0.1701315]
[1727310135370,23.902374,148.68,148.64,0.1701315]
[1727310135880,0.12549,148.66,148.64,0.1701315]
[1727310137272,30.629274,148.66,148.64,0.1701315]
[1727310138682,6.7272,148.65,148.64,0.1701315]
[1727310138982,30.629574,148.65,148.64,0.1701315]
[1727310139280,30.755064,148.65,148.64,0.1701315]
[1727310141499,50.755064,148.65,148.64,0.1701315]
[1727310145205,30.755064,148.65,148.64,0.1701315]
[1727310145695,50.755064,148.65,148.64,0.1701315]
[1727310147086,70.965064,148.65,148.64,0.1701315]
[1727310148996,70.965064,148.65,148.61,0.251075]
[1727310148997,50.756364,148.62,148.61,0.251075]
[1727310149292,6.98128,148.58,148.57,0.251075]
[1727310149497,30.758164,148.58,148.57,0.251075]
[1727310150971,24.027864,148.57,148.54,0.4285188]
[1727310151177,24.027864,148.57,148.54,0.6058317]
[1727310151374,30.758764,148.57,148.54,0.6058317]
[1727310152393,24.027864,148.57,148.54,0.6058317]
[1727310152891,23.902374,148.57,148.54,0.6058317]
[1727310154170,0.12549,148.57,148.54,0.6058317]
[1727310154589,20.0,148.61,148.54,0.6058317]
[1727310154800,6.5076,148.65,148.54,0.6058317]
[1727310154986,16.0133,148.66,148.55,1.3462695]
[1727310155292,6.7284,148.63,148.55,1.3462695]
[1727310155500,6.7286,148.62,148.54,0.6058317]
[1727310156271,0.12549,148.6,148.54,0.6058317]
[1727310165486,30.505884,148.61,148.54,0.6058317]
[1727310165487,23.776884,148.61,148.54,0.6058317]
[1727310165810,6.7273,148.65,148.57,6.2489]
[1727310165987,6.7264,148.67,148.58,1.34589893]
[1727310166523,6.7268,148.66,148.58,33.54093318]
[1727310166711,6.7264,148.67,148.59,12.19503425]
[1727310167009,6.7264,148.67,148.61,15.7649]
[1727310167185,6.7258,148.68,148.61,15.7649]
[1727310167607,20.21,148.69,148.61,15.7649]
[1727310167807,6.7259,148.68,148.61,15.7649]
[1727310168509,6.7263,148.67,148.61,15.7649]
[1727310168805,0.12549,148.66,148.61,15.7649]
[1727310169013,23.902374,148.66,148.61,15.7649]
[1727310170209,44.112374,148.66,148.61,15.7649]
[1727310170509,23.902374,148.66,148.61,15.7649]
[1727310170687,23.902374,148.66,148.62,20.0]
[1727310170889,0.12549,148.66,148.62,20.0]
[1727310171406,0.12549,148.66,148.61,15.7649]
[1727310171589,0.12549,148.66,148.62,20.0]
[1727310174686,23.902374,148.66,148.62,20.0]
[1727310176808,0.12549,148.66,148.62,20.0]
[1727310177394,0.12549,148.66,148.62,26.5453]
[1727310177796,0.0810744,148.7,148.62,27.89088704]
[1727310178119,0.0810744,148.7,148.64,20.0]
[1727310178784,0.0810744,148.7,148.63,20.0]
[1727310179320,0.2065644,148.7,148.63,20.0]
[1727310181010,0.2065644,148.7,148.64,1.34527857]
[1727310181389,0.2065644,148.7,148.63,20.0]
[1727310182899,6.9314644,148.7,148.63,20.0]
[1727310183101,0.12549,148.68,148.63,20.0]
[1727310184621,30.628474,148.68,148.63,20.0]
[1727310184812,6.85159,148.68,148.63,20.0]
[1727310185332,0.12549,148.66,148.63,20.0]
[1727310185822,0.12549,148.66,148.62,6.5453]
[1727310192424,0.12549,148.66,148.62,7.89094887]
[1727310193718,0.12549,148.66,148.62,6.5453]
[1727310194506,6.85229,148.66,148.62,6.5453]
[1727310195108,0.12549,148.66,148.61,15.7649]
[1727310195304,0.12549,148.63,148.58,6.4798129]
[1727310195805,23.902374,148.63,148.58,6.4798129]
[1727310196411,23.902374,148.64,148.59,20.0]
[1727310196706,0.12549,148.64,148.59,20.0]
[1727310198101,0.12549,148.64,148.6,1.34572925]
[1727310198596,20.2910744,148.7,148.59,20.0]
[1727310198840,6.7258,148.68,148.59,20.0]
[1727310199816,23.902374,148.67,148.59,20.0]
[1727310204532,23.902374,148.65,148.59,20.0]
[1727310207112,0.12549,148.65,148.59,21.34574789]
[1727310207528,23.902374,148.66,148.59,21.34574789]
[1727310208627,23.902374,148.66,148.59,20.0]
[1727310209032,20.2910744,148.7,148.63,20.0]
[1727310209033,0.0810744,148.7,148.63,20.0]
[1727310209330,0.0810744,148.7,148.64,1.34536501]
[1727310210325,23.9834484,148.7,148.64,1.34536501]
[1727310211312,23.9834484,148.7,148.63,20.0]
[1727310211561,23.902374,148.7,148.63,20.0]
[1727310211726,0.0765777,148.7,148.64,1.34534043]
[1727310213325,0.0765777,148.7,148.63,20.0]
[1727310214745,0.12549,148.69,148.62,22.1532]
[1727310214924,6.7259,148.68,148.62,22.1532]
[1727310215250,6.97638,148.69,148.62,22.1532]
[1727310215658,0.12549,148.67,148.62,22.1532]
[1727310216248,0.12549,148.67,148.63,20.0]
[1727310219737,0.12549,148.67,148.62,22.1532]
[1727310223741,0.25098,148.67,148.62,6.6458]
[1727310225130,23.776884,148.66,148.62,6.6458]
[1727310225330,0.12549,148.65,148.62,6.6458]
[1727310225834,0.12549,148.63,148.58,0.1748664]
[1727310233650,0.12549,148.64,148.58,0.1748664]
[1727310233960,0.12549,148.64,148.58,12.36718712]
[1727310235358,0.12549,148.64,148.58,0.1748664]
[1727310235668,0.12549,148.64,148.58,20.1748664]
[1727310237875,23.776884,148.66,148.6,32.19232072]
[1727310238071,0.12549,148.65,148.61,1.34563361]
[1727310239777,0.12549,148.65,148.6,20.0]
[1727310240371,6.85279,148.65,148.6,20.0]
[1727310244882,0.12549,148.65,148.6,20.0]
[1727310245177,0.12549,148.65,148.6,33.53807038]
[1727310245386,0.0765777,148.69,148.6,33.53807038]
[1727310245574,0.2020677,148.69,148.6,33.53807038]
[1727310245775,23.902374,148.67,148.6,33.53807038]
[1727310246079,23.902374,148.67,148.6,20.0]
[1727310246272,6.7276,148.65,148.59,21.4924]
[1727310246594,0.12549,148.64,148.59,21.4924]
[1727310247802,0.12549,148.64,148.58,0.1748664]
[1727310247965,15.94969,148.66,148.58,0.1748664]
[1727310247966,0.12549,148.61,148.58,0.1748664]
[1727310248688,23.902374,148.61,148.58,0.1748664]
[1727310248885,0.12549,148.61,148.58,0.1748664]
[1727310249391,0.12549,148.62,148.58,0.1748664]
[1727310250369,0.12549,148.62,148.58,20.1748664]
[1727310250569,36.15969,148.66,148.58,20.1748664]
[1727310250570,23.902374,148.63,148.58,20.1748664]
[1727310252366,30.630474,148.63,148.58,0.1748664]
[1727310252761,0.12549,148.6,148.58,0.1748664]
[1727310255587,0.12549,148.61,148.58,0.1748664]
[1727310255767,0.12549,148.6,148.58,0.1748664]
[1727310257968,6.85539,148.59,148.58,0.1748664]
[1727310258174,0.12549,148.59,148.58,0.1748664]
[1727310258999,6.7295,148.6,148.58,0.1748664]
[1727310259183,0.12549,148.59,148.58,0.1748664]
[1727310259379,23.902374,148.59,148.58,0.1748664]
[1727310259573,30.757764,148.59,148.58,0.1748664]
[1727310262573,50.757764,148.59,148.58,0.1748664]
[1727310264996,20.12549,148.59,148.58,0.1748664]
[1727310266402,23.902374,148.59,148.58,0.1748664]
[1727310269298,0.12549,148.59,148.58,0.1748664]
[1727310269599,30.632274,148.59,148.58,0.1748664]
[1727310270793,0.12549,148.59,148.58,0.1748664]
[1727310273100,0.12549,148.6,148.58,0.1748664]
[1727310273775,20.0,148.63,148.58,0.1748664]
[1727310273972,0.12549,148.62,148.58,0.1748664]
[1727310274173,6.729,148.61,148.58,0.1748664]
[1727310274372,6.7294,148.6,148.58,0.1748664]
[1727310274606,0.12549,148.59,148.58,0.1748664]
[1727310275205,6.85539,148.59,148.58,0.1748664]
[1727310276099,0.12549,148.59,148.58,0.1748664]
[1727310278094,6.85539,148.59,148.58,0.1748664]
[1727310279200,30.632274,148.59,148.58,0.1748664]
[1727310279413,86.820964,148.59,148.58,0.1748664]
[1727310281005,66.610964,148.59,148.58,0.1748664]
[1727310281385,16.6366,148.63,148.58,0.1748664]
[1727310281620,20.0,148.6,148.58,0.1748664]
[1727310281816,6.7295,148.6,148.58,0.1748664]
[1727310282690,0.12549,148.59,148.58,0.1748664]
[1727310284413,30.632274,148.59,148.58,0.1748664]
[1727310284717,6.85539,148.59,148.58,0.1748664]
[1727310285808,0.12549,148.59,148.58,0.1748664]
[1727310286590,30.757764,148.59,148.58,0.1748664]
[1727310289214,30.632274,148.59,148.58,0.1748664]
[1727310289522,0.12549,148.59,148.58,0.1748664]
[1727310292492,6.85539,148.59,148.58,0.1748664]
[1727310294293,30.632274,148.59,148.58,0.1748664]
[1727310294798,0.12549,148.59,148.58,0.1748664]
[1727310299303,16.6366,148.63,148.58,0.1748664]
[1727310299500,23.776884,148.61,148.58,0.1748664]
[1727310299699,0.12549,148.6,148.58,0.1748664]
[1727310300288,6.85539,148.59,148.58,0.1748664]
[1727310300615,0.12549,148.6,148.58,0.1748664]
[1727310302401,6.7277,148.64,148.58,0.1748664]
[1727310302604,6.7273,148.65,148.59,12.19232072]
[1727310302912,15.2931,148.67,148.6,1.34580193]
[1727310303093,0.0765777,148.69,148.6,13.53812265]
[1727310303421,0.0765777,148.69,148.61,12.19232072]
[1727310303605,0.0765777,148.69,148.62,1.34560334]
[1727310304011,0.0765777,148.69,148.61,12.19232072]
[1727310304206,6.8019777,148.69,148.63,22.3138]
[1727310304411,0.0765777,148.69,148.64,1.34538003]
[1727310304593,0.0765777,148.69,148.64,13.53770075]
[1727310306519,0.0765777,148.69,148.64,1.34538003]
[1727310308719,0.0765777,148.69,148.63,22.3138]
[1727310311519,30.5790617,148.69,148.63,22.3138]
[1727310312022,0.12549,148.68,148.63,22.3138]
[1727310313803,6.85139,148.68,148.63,22.3138]
[1727310313999,0.12549,148.66,148.59,22.5286]
[1727310314228,0.12549,148.66,148.6,20.0]
[1727310314724,0.12549,148.64,148.6,20.0]
[1727310315423,0.12549,148.65,148.6,20.0]
[1727310315811,6.85279,148.65,148.59,22.5286]
[1727310318620,0.12549,148.65,148.59,22.5286]
[1727310318806,0.12549,148.63,148.59,22.5286]
[1727310323227,6.85369,148.63,148.59,22.5286]
[1727310326219,0.12549,148.61,148.58,0.1748664]
[1727310326421,6.85449,148.61,148.58,0.1748664]
[1727310327121,0.12549,148.61,148.58,0.1748664]
[1727310327309,23.902374,148.62,148.58,0.1748664]
[1727310328116,0.12549,148.62,148.58,0.1748664]
[1727310328318,0.12549,148.63,148.58,0.1748664]
[1727310328629,20.0,148.66,148.59,13.54242411]
[1727310328833,6.7264,148.67,148.6,12.19657895]
[1727310329032,6.7264,148.67,148.61,1.34566834]
[1727310329732,15.6586777,148.69,148.61,1.34566834]
[1727310329915,6.7268,148.66,148.61,1.34566834]
[1727310330112,0.12549,148.65,148.61,1.34566834]
[1727310330517,0.12549,148.65,148.58,21.52053391]
[1727310332625,0.12549,148.65,148.58,20.1748664]
[1727310337553,6.85269,148.65,148.58,20.1748664]
[1727310340650,6.85269,148.65,148.58,0.1748664]
[1727310343157,23.902374,148.66,148.6,16.0215]
[1727310343328,50.628974,148.67,148.61,1.3455866]
[1727310343527,50.628974,148.67,148.6,16.0215]
[1727310344249,30.628974,148.67,148.6,16.0215]
[1727310346050,0.12549,148.67,148.61,21.34559225]
[1727310346249,20.0765777,148.69,148.61,40.39808717]
[1727310346552,20.0765777,148.69,148.64,15.1543]
[1727310346553,0.0765777,148.69,148.64,15.1543]
[1727310348956,0.2020677,148.69,148.64,15.1543]
[1727310354283,0.12549,148.67,148.62,6.2555]
[1727310354497,30.628674,148.67,148.62,6.2555]
[1727310355284,23.902374,148.67,148.62,6.2555]
[1727310357295,0.12549,148.68,148.63,13.5340824]
[1727310357586,0.12549,148.68,148.63,12.18857348]
[1727310358094,0.2020677,148.69,148.63,12.18857348]
[1727310360391,0.2020677,148.69,148.62,6.2555]
[1727310360392,0.12549,148.68,148.62,6.2555]
[1727310360584,0.12549,148.67,148.62,6.2555]
[1727310361089,0.12549,148.65,148.62,6.2555]
[1727310361266,0.12549,148.64,148.62,6.2555]
[1727310365711,0.12549,148.65,148.62,6.2555]
[1727310370376,30.629674,148.65,148.6,15.7061]
[1727310370922,0.12549,148.63,148.58,6.2737664]
[1727310372200,23.902374,148.63,148.58,6.2737664]
[1727310372407,23.902374,148.63,148.58,0.1748664]
[1727310372408,30.630574,148.63,148.58,0.1748664]
[1727310374087,0.12549,148.61,148.58,0.1748664]
[1727310376479,0.12549,148.62,148.58,0.1748664]
[1727310379002,0.12549,148.63,148.58,0.1748664]
[1727310382306,0.12549,148.64,148.59,12.18857348]
[1727310382599,15.0581,148.66,148.6,1.34568227]
[1727310382781,6.7266,148.67,148.6,13.53425575]
[1727310383179,6.7266,148.67,148.6,12.18857348]
[1727310384485,0.12549,148.66,148.6,12.18857348]
[1727310385018,0.12549,148.66,148.59,18.82397348]
[1727310385302,0.12549,148.66,148.59,6.6354]
[1727310385497,23.902374,148.66,148.59,6.6354]
[1727310387705,30.629174,148.66,148.59,6.6354]
[1727310388814,6.85319,148.64,148.59,6.6354]
[1727310390210,0.12549,148.63,148.59,6.6354]
[1727310391721,0.12549,148.63,148.58,0.1748664]
[1727310393099,26.85449,148.61,148.58,0.1748664]
[1727310398432,30.506684,148.6,148.58,0.1748664]
[1727310398602,30.632274,148.59,148.58,0.1748664]
[1727310401713,0.12549,148.59,148.58,0.1748664]
[1727310418840,22.8597,148.64,148.58,0.1748664]
[1727310419137,6.7277,148.64,148.58,0.1748664]
[1727310419516,6.7283,148.63,148.58,0.1748664]
[1727310420329,0.12549,148.62,148.58,0.1748664]
[1727310420841,23.902374,148.62,148.58,0.1748664]
[1727310422543,6.729,148.61,148.58,0.1748664]
[1727310422714,23.902374,148.6,148.58,0.1748664]
[1727310426456,30.631974,148.6,148.58,0.1748664]
[1727310429946,23.902374,148.6,148.58,0.1748664]
[1727310430340,0.12549,148.6,148.58,0.1748664]
[1727310430655,20.0,148.62,148.58,0.1748664]
[1727310431648,20.0,148.63,148.58,0.1748664]
[1727310432725,6.7296,148.6,148.58,0.1748664]
[1727310432930,0.12549,148.6,148.58,0.1748664]
[1727310436847,0.12549,148.61,148.58,0.1748664]
[1727310461555,6.85459,148.61,148.58,0.1748664]
[1727310462453,0.12549,148.61,148.58,0.1748664]
[1727310464349,30.632274,148.59,148.58,0.1748664]
[1727310464576,50.757764,148.59,148.58,0.1748664]
[1727310466377,43.902374,148.59,148.58,0.1748664]
[1727310466852,50.632274,148.59,148.58,0.1748664]
[1727310469176,23.902374,148.59,148.58,0.1748664]
[1727310471076,6.7289,148.62,148.58,0.1748664]
[1727310471266,26.7291,148.61,148.58,0.1748664]
[1727310472354,0.12549,148.6,148.58,0.1748664]
[1727310478872,6.7286,148.62,148.58,0.1748664]
[1727310479075,6.7276,148.64,148.58,0.1748664]
[1727310479374,23.0326777,148.69,148.6,12.18857348]
[1727310479575,6.7268,148.66,148.6,12.18857348]
[1727310479781,6.7268,148.66,148.59,1.34567723]
[1727310479782,6.7268,148.66,148.59,12.18857348]
[1727310480077,6.7276,148.65,148.58,21.7862664]
[1727310480781,0.12549,148.63,148.58,21.7862664]
[1727310481669,6.7276,148.65,148.59,1.34579774]
[1727310481864,24.027864,148.68,148.59,1.34579774]
[1727310482057,6.7271,148.66,148.58,33.97483988]
[1727310482470,0.12549,148.65,148.58,33.97483988]
[1727310487289,6.85269,148.65,148.58,33.97483988]
[1727310487470,23.776884,148.64,148.58,33.97483988]
[1727310487669,0.12549,148.63,148.58,33.97483988]
[1727310488493,23.776884,148.64,148.58,33.97483988]
[1727310488662,0.12549,148.65,148.59,13.53423792]
[1727310488870,0.12549,148.65,148.6,12.18857348]
[1727310489068,0.12549,148.65,148.61,1.34561786]
[1727310490487,0.12549,148.65,148.59,12.18857348]
[1727310490863,6.85269,148.65,148.59,12.18857348]
[1727310495370,0.12549,148.65,148.6,13.5342294]
[1727310496474,0.12549,148.65,148.61,1.34560876]
[1727310497173,6.7262,148.68,148.61,13.53418224]
[1727310497374,0.0765777,148.69,148.63,12.18857348]
[1727310497695,0.0765777,148.69,148.64,1.34537406]
[1727310498472,6.8020777,148.69,148.64,1.34537406]
[1727310498682,0.12549,148.68,148.63,12.18857348]
[1727310501002,0.12549,148.68,148.62,21.4633]
[1727310501172,6.7266,148.67,148.62,21.4633]
[1727310501377,0.12549,148.68,148.62,21.4633]
[1727310501970,0.12549,148.65,148.62,21.4633]
[1727310502371,0.12549,148.65,148.62,6.3999]
[1727310502595,0.12549,148.64,148.58,21.6853664]
[1727310502802,6.7286,148.62,148.58,21.6853664]
[1727310503301,0.12549,148.61,148.58,6.3543664]
[1727310503501,0.12549,148.61,148.58,0.1748664]
[1727310504998,0.12549,148.59,148.58,0.1748664]
[1727310507713,6.85539,148.59,148.58,0.1748664]
[1727310508906,0.12549,148.59,148.58,0.1748664]
[1727310510912,30.632274,148.59,148.58,0.1748664]
[1727310511708,30.757764,148.59,148.58,0.1748664]
[1727310512692,30.257764,148.59,148.58,0.1748664]
[1727310513011,23.776884,148.59,148.58,0.1748664]
[1727310514797,23.902374,148.59,148.58,0.1748664]
[1727310518929,30.757764,148.59,148.58,0.1748664]
[1727310520018,23.902374,148.59,148.58,0.1748664]
[1727310535334,0.12549,148.59,148.58,0.1748664]
[1727310541753,30.632274,148.59,148.58,0.1748664]
[1727310544322,0.12549,148.59,148.58,0.1748664]
[1727310544645,20.0,148.63,148.58,0.1748664]
[1727310544837,26.7282,148.63,148.58,0.1748664]
[1727310545337,20.0,148.63,148.58,12.36343988]
[1727310545539,20.0,148.64,148.59,13.53443098]
[1727310545742,6.7267,148.66,148.6,12.18857348]
[1727310546846,20.0,148.65,148.59,27.75807348]
[1727310548548,20.0,148.65,148.6,12.18857348]
[1727310551149,0.12549,148.64,148.59,27.75807348]
[1727310551447,0.12549,148.64,148.59,15.5695]
[1727310552829,0.12549,148.64,148.59,27.75807348]
[1727310554345,6.85309,148.64,148.59,27.75807348]
[1727310554661,6.85309,148.64,148.59,15.5695]
[1727310563450,23.776884,148.63,148.59,15.5695]
[1727310563655,0.12549,148.62,148.59,15.5695]
[1727310572061,0.12549,148.62,148.58,0.1748664]
[1727310572261,20.25098,148.62,148.58,0.1748664]
[1727310572556,0.12549,148.6,148.58,0.1748664]
[1727310576239,20.0,148.64,148.58,0.1748664]
[1727310576462,20.0,148.64,148.59,12.18857348]
[1727310576763,20.0,148.67,148.59,12.18857348]
[1727310576941,20.0,148.64,148.59,12.18857348]
[1727310577741,0.12549,148.63,148.59,12.18857348]
[1727310578254,0.12549,148.63,148.58,12.36343988]
[1727310581562,0.12549,148.61,148.58,0.1748664]
[1727310590744,6.7272,148.65,148.59,13.534546]